bitfinex/quotes_BTCUSD_20250608
["timestamp","ask_amount","ask_price","bid_price","bid_amount"]
[1749420352299,0.00048011,106170.0,106160.0,2.30738981]
[1749420352509,0.00048011,106170.0,106160.0,2.31838981]
[1749420353415,0.00048011,106170.0,106160.0,2.42838981]
[1749420353850,0.08451442,106210.0,106200.0,0.24837142]
[1749420353851,0.10334433,106210.0,106200.0,0.24837142]
[1749420354070,0.10334433,106210.0,106200.0,0.83349391]
[1749420354277,0.10334424,106210.0,106200.0,0.83349391]
[1749420354709,0.10334424,106210.0,106200.0,0.24841955]
[1749420354920,0.11275937,106210.0,106200.0,0.24841955]
[1749420355577,0.11475937,106210.0,106200.0,0.24841955]
[1749420358165,0.12417459,106210.0,106200.0,0.24841955]
[1749420359025,0.12417529,106210.0,106200.0,0.24841973]
[1749420359242,0.12417529,106210.0,106200.0,0.24243539]
[1749420359669,0.11475999,106210.0,106200.0,0.25185096]
[1749420360353,0.09592964,106210.0,106200.0,0.25185096]
[1749420360553,0.10534433,106210.0,106200.0,0.25185096]
[1749420363878,0.08651434,106210.0,106200.0,0.25185096]
[1749420364086,0.10534424,106210.0,106200.0,0.26795096]
[1749420364301,0.11475937,106210.0,106200.0,0.27795096]
[1749420364858,0.10534424,106210.0,106200.0,0.27795096]
[1749420366749,0.10534433,106210.0,106200.0,0.27795096]
[1749420368896,0.10534433,106210.0,106200.0,0.9594248]
[1749420368897,0.002,106210.0,106200.0,0.9594248]
[1749420369104,0.002,106210.0,106200.0,1.3922248]
[1749420372258,0.002,106210.0,106200.0,1.5022248]
[1749420372470,0.002,106210.0,106200.0,2.10184001]
[1749420372711,0.002,106210.0,106200.0,1.99184001]
[1749420373537,0.002,106210.0,106200.0,1.40676565]
[1749420374178,0.002,106210.0,106200.0,0.82169129]
[1749420374383,0.002,106210.0,106200.0,1.40676565]
[1749420375317,0.002,106210.0,106200.0,0.82169129]
[1749420375515,0.002,106210.0,106200.0,1.40676565]
[1749420375880,0.002,106210.0,106200.0,1.70506565]
[1749420382163,0.002,106210.0,106200.0,1.81506565]
[1749420382373,0.002,106210.0,106200.0,1.51676565]
[1749420383038,0.025398,106220.0,106210.0,0.24805103]
[1749420383224,0.025398,106220.0,106210.0,1.22504487]
[1749420384090,0.0159842,106220.0,106210.0,1.22504487]
[1749420384736,0.02539809,106220.0,106210.0,1.22504487]
[1749420384942,0.02639809,106220.0,106210.0,1.22504487]
[1749420385826,0.0169842,106220.0,106210.0,1.22504487]
[1749420386035,0.02639809,106220.0,106210.0,1.22504487]
[1749420386716,0.026398,106220.0,106210.0,1.22504487]
[1749420389664,0.03581197,106220.0,106210.0,1.22504487]
[1749420390546,0.03581189,106220.0,106210.0,1.22504487]
[1749420391973,0.19772148,106210.0,106200.0,0.03456423]
[1749420392180,0.01883017,106210.0,106200.0,0.72483903]
[1749420392614,0.01883017,106210.0,106200.0,1.30991339]
[1749420393082,0.03513017,106210.0,106200.0,1.30991339]
[1749420393304,0.03513017,106210.0,106200.0,0.72483903]
[1749420393524,0.04454494,106210.0,106200.0,0.72583903]
[1749420393743,0.04454423,106210.0,106200.0,0.72683903]
[1749420393955,0.05395936,106210.0,106200.0,0.72683903]
[1749420394173,0.04454423,106210.0,106200.0,0.72683903]
[1749420394683,0.04454423,106210.0,106200.0,1.31191339]
[1749420396230,0.04454423,106210.0,106200.0,0.71173903]
[1749420397345,0.04454423,106210.0,106200.0,0.82173903]
[1749420397791,0.05395936,106210.0,106200.0,0.82173903]
[1749420398335,0.24226554,106210.0,106200.0,0.81232346]
[1749420398526,0.24226554,106210.0,106200.0,1.40681339]
[1749420398737,0.25168076,106210.0,106200.0,0.82173903]
[1749420398958,0.24785148,106210.0,106200.0,0.70662814]
[1749420399170,0.24785148,106210.0,106200.0,0.72546007]
[1749420399381,0.24785148,106210.0,106200.0,0.62487591]
[1749420399622,0.0595453,106210.0,106200.0,0.63429166]
[1749420399845,0.0595453,106210.0,106200.0,0.63429122]
[1749420400062,0.05013008,106210.0,106200.0,0.63429122]
[1749420400278,0.05012963,106210.0,106200.0,0.63429078]
[1749420400492,0.03512963,106210.0,106200.0,0.63429078]
[1749420403933,0.04454476,106210.0,106200.0,0.63429078]
[1749420404147,0.03512963,106210.0,106200.0,0.63429078]
[1749420405028,0.05132963,106210.0,106200.0,0.63429078]
[1749420407620,0.05132954,106210.0,106200.0,0.65161078]
[1749420408254,0.06074467,106210.0,106200.0,0.65161078]
[1749420408492,0.05132954,106210.0,106200.0,0.65161078]
[1749420408759,0.05132954,106210.0,106200.0,0.54161078]
[1749420409402,0.05132954,106210.0,106200.0,0.98056125]
[1749420409621,0.03512954,106210.0,106200.0,0.98056125]
[1749420409856,0.05032954,106210.0,106200.0,0.98032125]
[1749420410084,0.03512954,106210.0,106200.0,0.98032125]
[1749420412676,0.03512954,106210.0,106200.0,1.09032125]
[1749420413350,0.03512945,106210.0,106200.0,1.09032125]
[1749420414240,0.0445444,106210.0,106200.0,1.09032125]
[1749420414451,0.03512945,106210.0,106200.0,1.09032125]
[1749420415146,0.03512945,106210.0,106200.0,0.65137078]
[1749420415365,0.03512945,106210.0,106200.0,1.09032125]
[1749420416166,0.02571468,106210.0,106200.0,1.09032125]
[1749420416374,0.03512954,106210.0,106200.0,1.09032125]
[1749420418513,0.03512954,106210.0,106200.0,0.98032125]
[1749420421266,0.05761945,106210.0,106200.0,0.98032125]
[1749420422168,0.04820442,106210.0,106200.0,0.98032125]
[1749420422391,0.05761919,106210.0,106200.0,0.98032125]
[1749420422641,0.02248991,106210.0,106200.0,1.5312712]
[1749420422870,0.02248991,106210.0,106200.0,1.5477712]
[1749420423309,0.04788791,106220.0,106210.0,0.23215103]
[1749420423525,0.05730162,106220.0,106210.0,0.6711015]
[1749420423737,0.08271577,106220.0,106210.0,0.6555015]
[1749420424384,0.07330162,106220.0,106210.0,0.6555015]
[1749420424598,0.09312974,106220.0,106210.0,0.6555015]
[1749420425568,0.04988782,106220.0,106210.0,0.76820098]
[1749420425772,0.05930179,106220.0,106210.0,0.76820098]
[1749420425989,0.04988782,106220.0,106210.0,0.76820098]
[1749420426438,0.05930171,106220.0,106210.0,0.76820098]
[1749420426679,0.06871586,106220.0,106210.0,0.76820098]
[1749420426883,0.05930171,106220.0,106210.0,0.76820098]
[1749420427094,0.04988782,106220.0,106210.0,0.76820098]
[1749420427276,0.06871577,106220.0,106210.0,0.76820098]
[1749420428119,0.09452992,106220.0,106210.0,0.75190098]
[1749420428345,0.28281899,106220.0,106210.0,0.1977214]
[1749420428560,0.04464432,106210.0,106200.0,0.9500741]
[1749420428776,0.04464423,106210.0,106200.0,1.06530525]
[1749420429218,0.04464423,106210.0,106200.0,1.15586525]
[1749420429416,0.05405936,106210.0,106200.0,1.15586525]
[1749420429633,0.06347458,106210.0,106200.0,1.15590525]
[1749420429842,0.05405936,106210.0,106200.0,1.15590525]
[1749420430099,0.05405936,106210.0,106200.0,1.26590525]
[1749420430313,0.05405936,106210.0,106200.0,1.26690525]
[1749420431413,0.05405936,106210.0,106200.0,0.82795478]
[1749420433831,0.06347458,106210.0,106200.0,0.82795478]
[1749420435142,0.05405936,106210.0,106200.0,0.82795478]
[1749420436903,0.25178076,106210.0,106200.0,0.82795487]
[1749420437149,0.25178076,106210.0,106200.0,0.83737044]
[1749420437150,0.06347458,106210.0,106200.0,0.83737044]
[1749420439519,0.05405936,106210.0,106200.0,0.83737044]
[1749420439937,0.05405927,106210.0,106200.0,0.83737044]
[1749420440999,0.04464423,106210.0,106200.0,0.83737044]
[1749420442940,0.06421452,106220.0,106210.0,0.21655103]
[1749420443132,0.06421408,106220.0,106210.0,0.21655103]
[1749420443343,0.07644616,106220.0,106210.0,0.21655103]
[1749420443555,0.07362834,106220.0,106210.0,0.21655103]
[1749420443883,0.05761759,106220.0,106210.0,0.21655103]
[1749420444090,0.07362836,106220.0,106210.0,0.21655103]
[1749420444279,0.06524176,106220.0,106210.0,0.21655103]
[1749420444528,0.07465591,106220.0,106210.0,0.21655103]
[1749420444826,0.07565591,106220.0,106210.0,0.21655103]
[1749420444972,0.07565774,106220.0,106210.0,0.21655103]
[1749420445197,0.06905938,106220.0,106210.0,0.21655103]
[1749420445392,0.07565774,106220.0,106210.0,0.21655103]
[1749420445663,0.07847362,106220.0,106210.0,0.21655103]
[1749420445869,0.08788795,106220.0,106210.0,0.21655103]
[1749420446716,0.08788795,106220.0,106210.0,0.20713635]
[1749420446717,0.27617711,106220.0,106210.0,0.20713635]
[1749420446960,0.26676314,106220.0,106210.0,0.21655121]
[1749420447157,0.06905983,106220.0,106210.0,0.22596589]
[1749420447561,0.05964559,106220.0,106210.0,0.22596589]
[1749420447767,0.07847336,106220.0,106210.0,0.22596589]
[1749420448146,0.06905912,106220.0,106210.0,0.22596589]
[1749420448358,0.07847336,106220.0,106210.0,0.22596589]
[1749420449400,0.08788778,106220.0,106210.0,0.22596589]
[1749420449616,0.08788778,106220.0,106210.0,0.22540947]
[1749420452418,0.26676261,106220.0,106210.0,0.21599479]
[1749420453963,0.26676261,106220.0,106210.0,0.65487427]
[1749420455043,0.26676261,106220.0,106210.0,0.66428904]
[1749420457389,0.06905974,106220.0,106210.0,0.67370372]
[1749420457618,0.07847416,106220.0,106210.0,0.67370372]
[1749420457836,0.26676261,106220.0,106210.0,0.22540956]
[1749420459619,0.26676261,106220.0,106210.0,0.21599479]
[1749420461166,0.25734872,106220.0,106210.0,0.21599479]
[1749420461384,0.24793466,106220.0,106210.0,0.20657993]
[1749420462262,0.24793466,106220.0,106210.0,0.21599479]
[1749420466879,0.26353466,106220.0,106210.0,0.21599479]
[1749420468006,0.26353466,106220.0,106210.0,0.22540956]
[1749420469512,0.27013348,106220.0,106210.0,0.22540956]
[1749420470358,0.2701336,106220.0,106210.0,0.22540956]
[1749420470573,0.26353466,106220.0,106210.0,0.22540956]
[1749420470790,0.2701336,106220.0,106210.0,0.22540956]
[1749420470971,0.26353466,106220.0,106210.0,0.22540956]
[1749420471208,0.27013358,106220.0,106210.0,0.22540956]
[1749420471642,0.24793466,106220.0,106210.0,0.22540956]
[1749420471850,0.25453358,106220.0,106210.0,0.22540956]
[1749420472298,0.24793466,106220.0,106210.0,0.22540956]
[1749420472518,0.25453358,106220.0,106210.0,0.22540956]
[1749420472729,0.24793466,106220.0,106210.0,0.22540956]
[1749420472951,0.25453358,106220.0,106210.0,0.22540956]
[1749420474868,0.25453448,106220.0,106210.0,0.22540956]
[1749420475351,0.24793466,106220.0,106210.0,0.22540956]
[1749420475762,0.25453445,106220.0,106210.0,0.22540956]
[1749420475978,0.07565926,106220.0,106210.0,0.23482424]
[1749420476423,0.0784738,106220.0,106210.0,0.25142424]
[1749420476638,0.08507359,106220.0,106210.0,0.25142424]
[1749420476856,0.08507359,106220.0,106210.0,0.23482424]
[1749420477485,0.08507361,106220.0,106210.0,0.23482424]
[1749420477909,0.0784738,106220.0,106210.0,0.23482424]
[1749420478335,0.08507359,106220.0,106210.0,0.23482424]
[1749420478536,0.08507371,106220.0,106210.0,0.23482424]
[1749420479153,0.08507363,106220.0,106210.0,0.23482424]
[1749420480412,0.0784738,106220.0,106210.0,0.23482424]
[1749420480642,0.09448805,106220.0,106210.0,0.23482424]
[1749420481278,0.27617667,106220.0,106210.0,0.22540956]
[1749420481486,0.27336279,106220.0,106210.0,0.22540956]
[1749420482341,0.27336279,106220.0,106210.0,0.21599479]
[1749420482548,0.26676296,106220.0,106210.0,0.21599479]
[1749420482798,0.27336286,106220.0,106210.0,0.21599479]
[1749420483029,0.26676296,106220.0,106210.0,0.21599479]
[1749420483457,0.27336286,106220.0,106210.0,0.21599479]
[1749420484103,0.2733628,106220.0,106210.0,0.21599479]
[1749420484584,0.26676296,106220.0,106210.0,0.21599479]
[1749420484866,0.02824503,106210.0,106200.0,0.61308719]
[1749420485072,0.06706258,106210.0,106200.0,0.90588719]
[1749420485279,0.07647709,106210.0,106200.0,0.92471868]
[1749420485703,0.076477,106210.0,106200.0,0.92471868]
[1749420486118,0.05395945,106210.0,106200.0,0.92571868]
[1749420486319,0.07648481,106210.0,106200.0,0.92571868]
[1749420487160,0.05395945,106210.0,106200.0,0.92571868]
[1749420487751,0.06337467,106210.0,106200.0,0.92571868]
[1749420488177,0.23285157,106210.0,106200.0,0.50425552]
[1749420488528,0.26206038,106210.0,106200.0,0.80643153]
[1749420489797,0.26206038,106210.0,106200.0,0.81584745]
[1749420490466,0.26206038,106210.0,106200.0,0.82526329]
[1749420493169,0.0576542,106210.0,106200.0,0.83467886]
[1749420494154,0.25537568,106210.0,106200.0,0.82526329]
[1749420494547,0.0670695,106210.0,106200.0,0.83467904]
[1749420494784,0.0576542,106210.0,106200.0,0.8440947]
[1749420494997,0.0576542,106210.0,106200.0,0.84409426]
[1749420495207,0.05765384,106210.0,106200.0,0.83467869]
[1749420495635,0.05765384,106210.0,106200.0,0.84409426]
[1749420495849,0.06706835,106210.0,106200.0,0.84409426]
[1749420496914,0.07648348,106210.0,106200.0,0.84409426]
[1749420497137,0.1011987,106210.0,106200.0,0.84409426]
[1749420498278,0.09178348,106210.0,106200.0,0.84409426]
[1749420498495,0.03512946,106210.0,106200.0,0.84409426]
[1749420498712,0.0445445,106210.0,106200.0,0.84409426]
[1749420498926,0.0445445,106210.0,106200.0,0.74769478]
[1749420499145,0.0445445,106210.0,106200.0,1.18657426]
[1749420499955,0.05395963,106210.0,106200.0,1.18657426]
[1749420500363,0.05395963,106210.0,106200.0,0.89381426]
[1749420500582,0.06337485,106210.0,106200.0,1.18653426]
[1749420501131,0.05395963,106210.0,106200.0,1.18653426]
[1749420503259,0.24226581,106210.0,106200.0,1.17711869]
[1749420503468,0.25746581,106210.0,106200.0,1.17711869]
[1749420503698,0.06915963,106210.0,106200.0,1.18653426]
[1749420504108,0.05395963,106210.0,106200.0,1.18653426]
[1749420504605,0.07647451,106210.0,106200.0,1.18653426]
[1749420504784,0.01883353,106190.0,106180.0,0.028285]
[1749420505041,0.01883353,106190.0,106180.0,0.02837636]
[1749420505042,0.61974006,106190.0,106180.0,0.02837636]
[1749420505262,0.61974006,106190.0,106180.0,9.136e-05]
[1749420505471,0.20721421,106170.0,106160.0,0.01]
[1749420505679,0.31710594,106170.0,106160.0,0.01]
[1749420505924,0.68758904,106170.0,106160.0,0.01013512]
[1749420506120,0.81412487,106170.0,106160.0,0.01013512]
[1749420506326,0.81698388,106170.0,106160.0,0.01013512]
[1749420506540,0.94116803,106170.0,106160.0,0.01013512]
[1749420506743,0.81163683,106170.0,106160.0,0.01013512]
[1749420506969,0.81163682,106170.0,106160.0,0.01013512]
[1749420507206,0.86762012,106170.0,106160.0,0.01013512]
[1749420507406,0.83932212,106170.0,106160.0,0.01013512]
[1749420507610,0.84332213,106170.0,106160.0,0.01013512]
[1749420507812,0.78509654,106170.0,106160.0,0.01013512]
[1749420508232,0.79168849,106170.0,106160.0,0.01013512]
[1749420509045,0.65479964,106170.0,106160.0,0.79387511]
[1749420509244,0.64547906,106170.0,106160.0,0.2350295]
[1749420509447,0.70908628,106170.0,106160.0,0.02779501]
[1749420509655,0.42649174,106170.0,106160.0,1.12755383]
[1749420509858,0.38535143,106170.0,106160.0,1.11931344]
[1749420510028,0.58314723,106170.0,106160.0,1.10047493]
[1749420510238,0.57914723,106170.0,106160.0,1.10047493]
[1749420510465,0.60811253,106170.0,106160.0,1.11931378]
[1749420510685,0.60911253,106170.0,106160.0,0.5333884]
[1749420510835,0.57172909,106170.0,106160.0,1.1098944]
[1749420511046,0.56231068,106170.0,106160.0,1.10047493]
[1749420511255,0.59027598,106170.0,106160.0,1.10047493]
[1749420511471,0.05248018,106170.0,106160.0,1.11931378]
[1749420511663,0.02451488,106170.0,106160.0,1.94001776]
[1749420511880,0.02451488,106170.0,106160.0,1.95758142]
[1749420512235,0.02451488,106170.0,106160.0,1.35409238]
[1749420512451,0.03393293,106170.0,106160.0,1.45049186]
[1749420512671,0.03393293,106170.0,106160.0,1.46805531]
[1749420513387,0.02351488,106170.0,106160.0,1.47731463]
[1749420513595,0.02351488,106170.0,106160.0,1.47931463]
[1749420513803,0.02251488,106170.0,106160.0,1.47931463]
[1749420514020,0.02251488,106170.0,106160.0,1.46175118]
[1749420514216,0.02251488,106170.0,106160.0,1.46375118]
[1749420514217,0.03193302,106170.0,106160.0,1.46375118]
[1749420514468,0.02251488,106170.0,106160.0,1.46375118]
[1749420514908,0.02251488,106170.0,106160.0,1.45449186]
[1749420515966,0.03193293,106170.0,106160.0,1.45449186]
[1749420516389,0.02251488,106170.0,106160.0,1.45449186]
[1749420516824,0.0279653,106200.0,106190.0,0.21659182]
[1749420517037,0.0279653,106200.0,106190.0,1.26480379]
[1749420517265,0.0289653,106210.0,106200.0,0.21657142]
[1749420517482,0.001,106210.0,106200.0,0.4266309]
[1749420517704,0.001,106210.0,106200.0,1.01255628]
[1749420517929,0.001,106210.0,106200.0,1.09174182]
[1749420518589,0.001,106210.0,106200.0,1.09187694]
[1749420519767,0.08551434,106210.0,106200.0,1.09187694]
[1749420519981,0.07609974,106210.0,106200.0,1.09187694]
[1749420520188,0.07609974,106210.0,106200.0,1.09287694]
[1749420521918,0.001,106210.0,106200.0,1.09287694]
[1749420522343,0.001,106210.0,106200.0,1.12115894]
[1749420525115,0.01041468,106210.0,106200.0,0.53523356]
[1749420525372,0.01041468,106210.0,106200.0,1.12115894]
[1749420525373,0.01982954,106210.0,106200.0,1.12115894]
[1749420526218,0.01041468,106210.0,106200.0,1.12115894]
[1749420527555,0.29265112,106210.0,106200.0,0.2237766]
[1749420527811,0.29923626,106210.0,106200.0,0.02941712]
[1749420528031,0.34280156,106210.0,106200.0,0.02941712]
[1749420528517,0.34280156,106210.0,106200.0,0.00113512]
[1749420528734,0.36516674,106210.0,106200.0,0.00113512]
[1749420528955,0.4988521,106210.0,106200.0,0.00113512]
[1749420529391,0.40245262,106210.0,106200.0,0.00113512]
[1749420530042,0.32735288,106210.0,106200.0,0.00113512]
[1749420530463,0.44735288,106210.0,106200.0,0.00113512]
[1749420532227,0.78735288,106210.0,106200.0,0.00113512]
[1749420536170,0.75938758,106210.0,106200.0,0.00113512]
[1749420536845,0.85578706,106210.0,106200.0,0.00113512]
[1749420537252,0.91177036,106210.0,106200.0,0.00113512]
[1749420537725,0.85578706,106210.0,106200.0,0.00113512]
[1749420538159,0.91177036,106210.0,106200.0,0.00113512]
[1749420539908,0.91834197,106210.0,106200.0,0.00113512]
[1749420540137,0.82194249,106210.0,106200.0,0.00113512]
[1749420540360,0.82204693,106210.0,106200.0,0.00113512]
[1749420540589,0.78465642,106210.0,106200.0,0.00113512]
[1749420540811,0.778085,106210.0,106200.0,0.00113512]
[1749420541030,0.78465633,106210.0,106200.0,0.00113512]
[1749420541249,0.78477991,106210.0,106200.0,0.00113512]
[1749420541473,0.88117939,106210.0,106200.0,0.00113512]
[1749420542127,0.88118096,106210.0,106200.0,0.00113512]
[1749420542339,0.81850118,106210.0,106200.0,0.00113512]
[1749420542737,0.88119591,106210.0,106200.0,0.00113512]
[1749420542985,0.82507408,106210.0,106200.0,0.00113512]
[1749420543204,0.7286746,106210.0,106200.0,0.00113512]
[1749420544164,0.72867884,106210.0,106200.0,0.00113512]
[1749420544379,0.72867885,106210.0,106200.0,0.00113512]
[1749420545269,0.80358131,106210.0,106200.0,0.00113512]
[1749420545483,0.80358131,106210.0,106200.0,0.00048901]
[1749420545704,0.72867884,106210.0,106200.0,0.00014679]
[1749420546155,0.79700416,106210.0,106200.0,0.00014679]
[1749420546371,0.80358692,106210.0,106200.0,0.00014679]
[1749420547029,0.8999864,106210.0,106200.0,0.00014679]
[1749420547483,0.89340364,106210.0,106200.0,0.00014679]
[1749420547717,0.8999864,106210.0,106200.0,0.00014679]
[1749420547933,0.81850118,106210.0,106200.0,0.00014679]
[1749420548117,0.82508394,106210.0,106200.0,0.00014679]
[1749420549468,0.81850118,106210.0,106200.0,0.00014679]
[1749420549681,0.82508488,106210.0,106200.0,0.00014679]
[1749420549898,0.82508489,106210.0,106200.0,0.00014679]
[1749420550107,0.82508488,106210.0,106200.0,0.00014679]
[1749420550754,0.82508527,106210.0,106200.0,0.00014679]
[1749420551270,0.92148473,106210.0,106200.0,0.00014679]
[1749420551494,0.22602964,106180.0,106170.0,0.49541483]
[1749420551718,0.31971112,106180.0,106170.0,0.51438784]
[1749420551924,0.28226342,106180.0,106170.0,0.51438784]
[1749420552148,0.27284599,106180.0,106170.0,0.51438784]
[1749420552803,0.26342829,106180.0,106170.0,0.51438784]
[1749420553017,0.26342829,106180.0,106170.0,0.50696925]
[1749420553233,0.26342829,106180.0,106170.0,0.51638801]
[1749420553450,0.26342829,106180.0,106170.0,0.63162475]
[1749420553872,0.26342829,106180.0,106170.0,0.64104325]
[1749420554320,0.26342829,106180.0,106170.0,0.54464377]
[1749420556046,0.05045095,106180.0,106170.0,0.95182801]
[1749420556278,0.02236518,106180.0,106170.0,1.25830801]
[1749420557142,0.03178235,106180.0,106170.0,1.25830801]
[1749420557845,0.06003482,106180.0,106170.0,0.67238263]
[1749420558059,0.06003491,106180.0,106170.0,1.25830801]
[1749420558268,0.06003482,106180.0,106170.0,1.35470749]
[1749420558479,0.06003455,106180.0,106170.0,1.34366749]
[1749420558715,0.06003455,106180.0,106170.0,1.33424926]
[1749420558716,0.06945304,106180.0,106170.0,1.33424926]
[1749420558967,0.24556005,106180.0,106170.0,0.00213557]
[1749420559185,0.27364582,106180.0,106170.0,0.31361557]
[1749420559622,0.27364582,106180.0,106170.0,0.31369557]
[1749420559814,0.27364582,106180.0,106170.0,0.00213557]
[1749420562024,0.74179326,106180.0,106170.0,0.00213557]
[1749420562266,0.84612835,106180.0,106170.0,0.00213557]
[1749420562478,0.82998039,106180.0,106170.0,0.00213557]
[1749420562731,0.90508013,106180.0,106170.0,0.00213557]
[1749420562946,0.89849713,106180.0,106170.0,0.00213557]
[1749420563163,0.90507977,106180.0,106170.0,0.00213557]
[1749420563376,0.90507972,106180.0,106170.0,0.00213557]
[1749420564040,0.90507972,106180.0,106170.0,0.00113557]
[1749420564691,0.93291348,106180.0,106170.0,0.00013557]
[1749420564902,0.9263311,106180.0,106170.0,0.00013557]
[1749420565117,0.93291348,106180.0,106170.0,0.00013557]
[1749420565339,0.9263311,106180.0,106170.0,0.00013557]
[1749420565558,0.95163705,106180.0,106170.0,0.00013557]
[1749420565775,0.5377958,106170.0,106160.0,0.01]
[1749420565995,1.28532831,106170.0,106160.0,0.01009028]
[1749420566207,1.27874622,106170.0,106160.0,0.01009028]
[1749420566423,1.28530747,106170.0,106160.0,0.01009028]
[1749420566675,1.28530748,106170.0,106160.0,0.01009028]
[1749420566904,1.2105412,106170.0,106160.0,0.01009028]
[1749420567122,1.20397994,106170.0,106160.0,0.01009028]
[1749420567372,1.20397994,106170.0,106160.0,0.00509028]
[1749420567598,1.21054119,106170.0,106160.0,0.00509028]
[1749420568017,1.21454119,106170.0,106160.0,0.00509028]
[1749420568236,1.27056006,106170.0,106160.0,0.00509028]
[1749420568457,1.26399881,106170.0,106160.0,0.00509028]
[1749420568686,1.27055914,106170.0,106160.0,0.00509028]
[1749420568905,1.26399881,106170.0,106160.0,0.00509028]
[1749420569122,1.27055914,106170.0,106160.0,0.00509028]
[1749420569785,1.28509999,106170.0,106160.0,0.00509028]
[1749420570001,1.22908112,106170.0,106160.0,0.00509028]
[1749420570223,1.22907412,106170.0,106160.0,0.00509028]
[1749420570475,1.29728707,106170.0,106160.0,0.00509028]
[1749420570712,0.87017948,106170.0,106160.0,0.00509028]
[1749420570929,0.87017948,106170.0,106150.0,0.03989154]
[1749420570930,0.71157342,106160.0,106150.0,0.03989154]
[1749420571147,0.20488717,106110.0,106100.0,0.0376]
[1749420571359,0.20488717,106110.0,106100.0,0.0225]
[1749420571360,0.67288665,106110.0,106100.0,0.0225]
[1749420571585,0.7894301,106110.0,106100.0,0.02298011]
[1749420571809,1.1035275,106110.0,106100.0,0.02298011]
[1749420572050,0.70595201,106100.0,106090.0,5.99448338]
[1749420572299,1.53146013,106100.0,106090.0,3.95632062]
[1749420572522,1.53145976,106100.0,106090.0,3.08994394]
[1749420572756,1.53145975,106100.0,106090.0,3.0428217]
[1749420572995,1.73913675,106100.0,106090.0,2.98627502]
[1749420573192,1.31917675,106100.0,106090.0,2.98627502]
[1749420573441,1.72438511,106100.0,106090.0,2.98627502]
[1749420573666,1.68717675,106100.0,106090.0,2.98627502]
[1749420573887,1.73063129,106100.0,106090.0,2.98627502]
[1749420574104,1.73063129,106100.0,106090.0,2.23707761]
[1749420574105,1.85801641,106100.0,106090.0,2.23707761]
[1749420574390,1.95761267,106100.0,106090.0,2.12969751]
[1749420574615,1.95761267,106100.0,106090.0,2.09129407]
[1749420574835,1.53781267,106100.0,106090.0,2.04888407]
[1749420575043,1.79546696,106100.0,106090.0,2.04888407]
[1749420575262,1.85904191,106100.0,106090.0,2.04888407]
[1749420575488,0.49922158,106100.0,106090.0,2.04888407]
[1749420575712,0.44369096,106100.0,106090.0,2.04888407]
[1749420575922,0.81144482,106100.0,106090.0,2.04888407]
[1749420576363,0.71204534,106100.0,106090.0,2.04888407]
[1749420576591,0.70804534,106100.0,106090.0,2.08028407]
[1749420577045,0.80433866,106100.0,106090.0,2.08028407]
[1749420577435,0.80433866,106100.0,106090.0,2.39780407]
[1749420577891,0.80433866,106100.0,106090.0,2.39980407]
[1749420578565,0.7765848,106100.0,106090.0,2.08228407]
[1749420578798,0.2663941,106100.0,106090.0,2.29908005]
[1749420579017,0.60687641,106100.0,106090.0,2.28965472]
[1749420579287,0.57914081,106100.0,106090.0,2.2896549]
[1749420579563,0.60687641,106100.0,106090.0,2.2896549]
[1749420579816,0.58802708,106100.0,106090.0,2.08228407]
[1749420580040,0.66861598,106100.0,106090.0,2.39912407]
[1749420580270,0.66861598,106100.0,106090.0,2.39712407]
[1749420580491,0.66861598,106100.0,106090.0,2.08028407]
[1749420580712,0.66861598,106100.0,106090.0,2.39696407]
[1749420584166,0.67790634,106100.0,106090.0,2.39696407]
[1749420584390,0.59731744,106100.0,106090.0,2.39696407]
[1749420584607,0.65284806,106100.0,106090.0,2.39696407]
[1749420584829,0.6158221,106100.0,106090.0,2.39696407]
[1749420585075,0.56029148,106100.0,106090.0,2.36452407]
[1749420585318,0.65669096,106100.0,106090.0,2.36452407]
[1749420586048,0.65669096,106100.0,106090.0,2.04888407]
[1749420587751,0.73129679,106100.0,106090.0,2.04888407]
[1749420588760,0.71227983,106100.0,106090.0,1.99230365]
[1749420589237,0.71227983,106100.0,106090.0,1.96230365]
[1749420590430,0.71216239,106100.0,106090.0,1.96230365]
[1749420590657,0.65657352,106100.0,106090.0,1.96230365]
[1749420594413,0.65657352,106100.0,106090.0,1.97790365]
[1749420594636,0.65657352,106100.0,106090.0,0.0156]
[1749420594890,0.66310734,106100.0,106090.0,0.0156]
[1749420595117,0.71237406,106100.0,106090.0,0.0156]
[1749420595337,0.71890788,106100.0,106090.0,0.0156]
[1749420595547,0.66310726,106100.0,106090.0,0.0156]
[1749420595753,0.65657352,106100.0,106090.0,0.0156]
[1749420596007,0.66310725,106100.0,106090.0,0.0156]
[1749420596896,0.66311546,106100.0,106090.0,0.0156]
[1749420597322,0.56017404,106100.0,106090.0,0.21961918]
[1749420597565,0.61603905,106100.0,106090.0,0.23847083]
[1749420597778,0.62258123,106100.0,106090.0,0.24789652]
[1749420597986,0.62258123,106100.0,106090.0,0.23847083]
[1749420598623,0.56671622,106100.0,106090.0,0.24047083]
[1749420598890,0.65657352,106100.0,106090.0,0.24047083]
[1749420599099,0.71905816,106100.0,106090.0,0.24247083]
[1749420599517,0.62265868,106100.0,106090.0,0.24247083]
[1749420599723,0.56671898,106100.0,106090.0,0.24247083]
[1749420599937,0.61616237,106100.0,106090.0,0.24247083]
[1749420600166,0.61329955,106100.0,106090.0,0.0351]
[1749420600383,0.61329955,106100.0,106090.0,0.04452595]
[1749420600594,0.55731121,106100.0,106090.0,0.04452595]
[1749420600803,0.65371068,106100.0,106090.0,0.242471]
[1749420601216,0.65370969,106100.0,106090.0,0.242471]
[1749420601472,0.65370983,106100.0,106090.0,0.242471]
[1749420601682,0.65370976,106100.0,106090.0,0.242471]
[1749420601890,0.70974352,106100.0,106090.0,0.242471]
[1749420602333,0.70318242,106100.0,106090.0,0.0351]
[1749420602839,0.64714863,106100.0,106090.0,0.0351]
[1749420603050,0.72831554,106100.0,106090.0,0.31628]
[1749420603256,0.72832009,106100.0,106090.0,0.31628]
[1749420603684,0.19794496,106090.0,106080.0,0.366097]
[1749420603904,0.32021964,106090.0,106080.0,0.382197]
[1749420604129,1.31742387,106090.0,106080.0,0.01]
[1749420604344,1.29856721,106090.0,106080.0,0.01]
[1749420604561,1.21710432,106090.0,106080.0,0.01]
[1749420604775,0.53796361,106080.0,106070.0,0.01444273]
[1749420604997,0.72872014,106080.0,106070.0,0.04604273]
[1749420605247,0.71929356,106080.0,106070.0,0.036615]
[1749420605936,0.71930561,106080.0,106070.0,0.036615]
[1749420606152,0.35402456,106080.0,106070.0,0.036615]
[1749420606362,0.36060007,106080.0,106070.0,0.036615]
[1749420606594,0.35402456,106080.0,106070.0,0.037615]
[1749420606801,0.37945011,106080.0,106070.0,0.037615]
[1749420607016,0.36060011,106080.0,106070.0,0.037615]
[1749420607645,0.36060012,106080.0,106070.0,0.037615]
[1749420607855,0.36060011,106080.0,106070.0,0.037615]
[1749420608090,0.35402456,106080.0,106070.0,0.037615]
[1749420608499,0.36060012,106080.0,106070.0,0.037615]
[1749420608704,0.38865287,106080.0,106070.0,0.037615]
[1749420609166,0.38865163,106080.0,106070.0,0.037615]